fUST/lending_fUST_20240725
["ID","MTS","AMOUNT","RATE_DAILY","PERIOD"]
[333081901,1721848245425,-500.0,0.00013972,2]
[333081902,1721848245435,-500.0,0.00013972,2]
[333081903,1721848245445,-1264.25,0.00013972,2]
[333081904,1721848245454,-1214.08,0.00013972,2]
[333081905,1721848245465,-500.0,0.00013972,2]
[333081906,1721848245477,-1568.27,0.00013972,2]
[333081907,1721848245487,-370.718604,0.00013972,2]
[333081908,1721848245496,-370.718604,0.00013972,2]
[333081909,1721848245507,-370.718604,0.00013972,2]
[333081910,1721848245518,-1279.12,0.00013972,2]
[333081911,1721848245529,-370.718604,0.00013972,2]
[333081912,1721848245539,-370.718604,0.00013972,2]
[333081913,1721848245551,-370.718604,0.00013972,2]
[333081914,1721848245562,-684.65,0.00013972,2]
[333081915,1721848245572,-5693.23098286,0.00013972,2]
[333081928,1721848247435,-600.0,0.00013698,2]
[333081941,1721849232160,-252.87108919,9.701e-05,2]
[333081942,1721849232187,-200.0,9.71e-05,2]
[333081943,1721849232211,-252.87108919,9.799e-05,2]
[333081944,1721849232231,-154.71377951,9.999e-05,2]
[333081945,1721849232253,-437.6322586,0.0001108,2]
[333081946,1721849232274,-250.0,0.00011395,2]
[333081947,1721849232297,-200.0,0.00013425,2]
[333081948,1721849232318,-999.45638725,0.00013588,2]
[333081949,1721849232340,-435.52032738,0.00013598,2]
[333081950,1721849248150,-273.37336231,9.9e-05,2]
[333081951,1721849248175,-587.8658538,0.000135,2]
[333081952,1721849248204,-413.3875084,0.000135,2]
[333081953,1721849248227,-306.0,0.000135,2]
[333081954,1721849248252,-379.71609877,0.00013598,2]
[333081955,1721849248276,-153.0,0.000136,2]
[333081956,1721849248301,-300.0,0.00013687,2]
[333081957,1721849248324,-300.0,0.00013687,2]
[333081958,1721849248349,-3909.75572662,0.00013688,2]
[333081959,1721849249101,-1588.45,0.00013688,2]
[333081963,1721849351127,-273.37336231,9.9e-05,2]
[333081964,1721849351150,-200.0,9.9e-05,2]
[333081965,1721849351172,-253.13368046,9.999e-05,2]
[333081966,1721849351195,-400.0,0.0001127,2]
[333081967,1721849359374,273.37336231,9.9e-05,2]
[333081969,1721849396300,1944.43832072,0.0001127,2]
[333081970,1721849396324,2229.41584405,0.0001127,2]
[333081971,1721849396350,259.92226443,0.0001127,2]
[333081972,1721849396374,2239.22080716,0.0001127,2]
[333081973,1721849396397,206.6937542,0.0001127,2]
[333081974,1721849396419,1825.95234979,0.0001127,2]
[333081975,1721849396831,198.99667155,0.0001127,2]
[333081976,1721849403485,193.33864952,0.0001,2]
[333081996,1721849433476,-122.85184507,0.0001,2]
[333081998,1721849433487,-1138.90791489,0.0001127,2]
[333082000,1721849433497,-276.0037646,0.0001127,2]
[333082002,1721849433507,-300.0,0.00012899,2]
[333082004,1721849433517,-3261.34911801,0.000129,2]
[333082051,1721849437926,-22450.96766152,0.000129,2]
[333082052,1721849437937,-18144.52085555,0.000132,2]
[333082053,1721849437950,-37793.80489156,0.000132,2]
[333082054,1721849437960,-3014.40539728,0.000135,2]
[333082055,1721849437970,-2860.16306786,0.0001366,2]
[333082056,1721849437980,-2237.98040343,0.00013687,2]
[333082057,1721849437990,-30741.540507,0.00013688,2]
[333082058,1721849437999,-1101.02,0.00013698,2]
[333082059,1721849438008,-588.69,0.00013698,2]
[333082060,1721849438018,-547.68,0.00013698,2]
[333082061,1721849438027,-500.0,0.00013698,2]
[333082062,1721849438036,-500.0,0.00013698,2]
[333082063,1721849438046,-500.0,0.00013698,2]
[333082064,1721849438056,-500.0,0.00013698,2]
[333082065,1721849438066,-503.00451241,0.00013698,2]
[333082066,1721849438076,-500.0,0.00013698,2]
[333082067,1721849438086,-500.0,0.00013698,2]
[333082068,1721849438098,-500.0,0.00013698,2]
[333082069,1721849438108,-500.0,0.00013698,2]
[333082070,1721849438117,-425.98261447,0.00013698,2]
[333082071,1721849438126,-500.0,0.00013698,2]
[333082073,1721849438135,-500.0,0.00013698,2]
[333082074,1721849438145,-500.0,0.00013698,2]
[333082075,1721849438157,-500.0,0.00013698,2]
[333082076,1721849438167,-705.07,0.00013698,2]
[333082077,1721849438176,-500.0,0.00013698,2]
[333082078,1721849438185,-1812.31,0.00013698,2]
[333082079,1721849438196,-500.0,0.00013698,2]
[333082080,1721849438205,-500.0,0.00013698,2]
[333082081,1721849438215,-500.0,0.00013698,2]
[333082082,1721849438227,-500.0,0.00013698,2]
[333082083,1721849438237,-500.0,0.00013698,2]
[333082084,1721849438248,-500.0,0.00013698,2]
[333082085,1721849438262,-530.50680164,0.00013698,2]
[333082086,1721849438271,-500.0,0.00013698,2]
[333082087,1721849438281,-500.0,0.00013698,2]
[333082088,1721849438291,-500.0,0.00013698,2]
[333082089,1721849438301,-504.60222625,0.00013698,2]
[333082090,1721849438310,-500.0,0.00013698,2]
[333082091,1721849438319,-685.21,0.00013698,2]
[333082092,1721849438328,-500.0,0.00013698,2]
[333082093,1721849438342,-500.0,0.00013698,2]
[333082094,1721849438353,-652.79,0.00013698,2]
[333082095,1721849438362,-500.0,0.00013698,2]
[333082096,1721849438372,-2095.62,0.00013698,2]
[333082097,1721849438383,-500.0,0.00013698,2]
[333082098,1721849438393,-500.0,0.00013698,2]
[333082099,1721849438404,-500.0,0.00013698,2]
[333082100,1721849438415,-500.0,0.00013698,2]
[333082101,1721849438427,-500.0,0.00013698,2]
[333082102,1721849438437,-500.0,0.00013698,2]
[333082103,1721849438446,-2251.49,0.00013698,2]
[333082104,1721849438456,-375.4855311,0.00013698,2]
[333082105,1721849438466,-1376.31,0.00013698,2]
[333082106,1721849438476,-500.0,0.00013698,2]
[333082107,1721849438486,-500.0,0.00013698,2]
[333082108,1721849438496,-500.0,0.00013698,2]
[333082109,1721849438508,-500.0,0.00013698,2]
[333082110,1721849438519,-500.0,0.00013698,2]
[333082111,1721849438529,-623.42,0.00013698,2]
[333082112,1721849438539,-374.31411848,0.00013698,2]
[333082113,1721849438549,-500.0,0.00013698,2]
[333082114,1721849438559,-500.0,0.00013698,2]
[333082115,1721849438568,-500.0,0.00013698,2]
[333082116,1721849438579,-345.54007751,0.00013698,2]
[333082117,1721849438589,-500.0,0.00013698,2]
[333082118,1721849438599,-500.0,0.00013698,2]
[333082119,1721849438609,-1579.31,0.00013698,2]
[333082120,1721849438619,-500.0,0.00013698,2]
[333082121,1721849438629,-2906.9,0.00013698,2]
[333082122,1721849438639,-595.66,0.00013698,2]
[333082123,1721849438649,-1028.89,0.00013698,2]
[333082124,1721849438659,-500.0,0.00013698,2]
[333082125,1721849438669,-500.0,0.00013698,2]
[333082126,1721849438679,-500.0,0.00013698,2]
[333082127,1721849438689,-1177.43,0.00013698,2]
[333082128,1721849438699,-500.0,0.00013698,2]
[333082129,1721849438710,-500.0,0.00013698,2]
[333082130,1721849438720,-500.0,0.00013698,2]
[333082131,1721849438730,-500.0,0.00013698,2]
[333082132,1721849438740,-505.25,0.00013698,2]
[333082133,1721849438750,-245.497927,0.00013698,2]
[333082134,1721849438760,-500.0,0.00013698,2]
[333082135,1721849438769,-1824.45,0.00013698,2]
[333082136,1721849438780,-500.0,0.00013698,2]
[333082137,1721849438790,-500.0,0.00013698,2]
[333082138,1721849438799,-500.0,0.00013698,2]
[333082139,1721849438810,-500.0,0.00013698,2]
[333082140,1721849438819,-1110.96,0.00013698,2]
[333082141,1721849438830,-500.0,0.00013698,2]
[333082142,1721849438842,-500.0,0.00013698,2]
[333082143,1721849438852,-500.0,0.00013698,2]
[333082144,1721849438863,-648.43,0.00013698,2]
[333082145,1721849438873,-695.51,0.00013698,2]
[333082146,1721849438883,-500.0,0.00013698,2]
[333082147,1721849438893,-1520.4,0.00013698,2]
[333082148,1721849438902,-500.0,0.00013698,2]
[333082149,1721849438912,-500.0,0.00013698,2]
[333082150,1721849438922,-662.28,0.00013698,2]
[333082151,1721849438932,-500.0,0.00013698,2]
[333082152,1721849438942,-1656.58,0.00013698,2]
[333082153,1721849438952,-440.50180681,0.00013698,2]
[333082154,1721849438962,-500.0,0.00013698,2]
[333082155,1721849438971,-481.14625723,0.00013698,2]
[333082156,1721849438982,-500.0,0.00013698,2]
[333082157,1721849438992,-642.1,0.00013698,2]
[333082158,1721849439002,-521.9,0.00013698,2]
[333082159,1721849439013,-712.45,0.00013698,2]
[333082160,1721849439023,-779.58,0.00013698,2]
[333082161,1721849439033,-1587.24,0.00013698,2]
[333082162,1721849439043,-500.0,0.00013698,2]
[333082163,1721849439053,-549.87,0.00013698,2]
[333082164,1721849439063,-500.0,0.00013698,2]
[333082165,1721849439072,-500.0,0.00013698,2]
[333082166,1721849439082,-500.0,0.00013698,2]
[333082167,1721849439093,-1143.95,0.00013698,2]
[333082168,1721849439102,-530.71,0.00013698,2]
[333082169,1721849439111,-1279.12,0.00013698,2]
[333082170,1721849439121,-500.0,0.00013698,2]
[333082171,1721849439129,-500.0,0.00013698,2]
[333082172,1721849439139,-500.0,0.00013698,2]
[333082173,1721849439148,-500.0,0.00013698,2]
[333082174,1721849439158,-500.0,0.00013698,2]
[333082175,1721849439167,-1173.68,0.00013698,2]
[333082176,1721849439177,-500.0,0.00013698,2]
[333082177,1721849439187,-1699.57,0.00013698,2]
[333082178,1721849439197,-500.0,0.00013698,2]
[333082179,1721849439206,-387.96238467,0.00013698,2]
[333082180,1721849439216,-500.0,0.00013698,2]
[333082181,1721849439225,-2171.34,0.00013698,2]
[333082182,1721849439235,-1179.92,0.00013698,2]
[333082183,1721849439244,-1387.81,0.00013698,2]
[333082184,1721849439256,-500.0,0.00013698,2]
[333082185,1721849439266,-617.23,0.00013698,2]
[333082186,1721849439276,-500.0,0.00013698,2]
[333082187,1721849439286,-500.0,0.00013698,2]
[333082188,1721849439297,-500.0,0.00013698,2]
[333082189,1721849439307,-500.0,0.00013698,2]
[333082190,1721849439316,-500.0,0.00013698,2]
[333082191,1721849439327,-500.0,0.00013698,2]
[333082192,1721849439336,-500.0,0.00013698,2]
[333082193,1721849439347,-500.0,0.00013698,2]
[333082194,1721849439357,-500.0,0.00013698,2]
[333082195,1721849439366,-500.0,0.00013698,2]
[333082196,1721849439375,-1197.15,0.00013698,2]
[333082197,1721849439385,-1568.27,0.00013698,2]
[333082198,1721849439394,-1347.35,0.00013698,2]
[333082199,1721849439403,-1085.66,0.00013698,2]
[333082200,1721849439413,-500.0,0.00013698,2]
[333082201,1721849439423,-500.0,0.00013698,2]
[333082202,1721849439432,-500.0,0.00013698,2]
[333082203,1721849439442,-500.0,0.00013698,2]
[333082204,1721849439451,-1394.13,0.00013698,2]
[333082205,1721849439615,-4404.28,0.00013698,2]
[333082206,1721849439625,-500.0,0.00013698,2]
[333082207,1721849439634,-500.0,0.00013698,2]
[333082208,1721849439644,-500.0,0.00013698,2]
[333082209,1721849439654,-10581.37,0.00013698,2]
[333082210,1721849439664,-1673.72,0.00013698,2]
[333082211,1721849439674,-500.0,0.00013698,2]
[333082212,1721849439683,-2341.68,0.00013698,2]
[333082213,1721849439693,-500.0,0.00013698,2]
[333082215,1721849439703,-178.99459703,0.00013698,2]
[333082216,1721849439712,-500.0,0.00013698,2]
[333082218,1721849439723,-500.0,0.00013698,2]
[333082219,1721849439732,-733.27,0.00013698,2]
[333082220,1721849439742,-500.0,0.00013698,2]
[333082221,1721849439751,-500.0,0.00013698,2]
[333082222,1721849439761,-500.0,0.00013698,2]
[333082223,1721849439771,-737.83,0.00013698,2]
[333082224,1721849439781,-171.17220993,0.00013698,2]
[333082225,1721849439790,-5788.53,0.00013698,2]
[333082226,1721849439799,-5788.53,0.00013698,2]
[333082227,1721849439809,-5788.53,0.00013698,2]
[333082228,1721849439818,-5788.53,0.00013698,2]
[333082229,1721849439828,-5788.53,0.00013698,2]
[333082230,1721849439837,-5788.53,0.00013698,2]
[333082231,1721849439847,-5788.53,0.00013698,2]
[333082232,1721849439857,-5788.53,0.00013698,2]
[333082233,1721849439867,-5788.53,0.00013698,2]
[333082234,1721849439876,-500.0,0.00013698,2]
[333082235,1721849439886,-884.56,0.00013698,2]
[333082236,1721849439895,-500.0,0.00013698,2]
[333082237,1721849439904,-500.0,0.00013698,2]
[333082238,1721849439913,-1044.5,0.00013698,2]
[333082239,1721849439923,-2021.82,0.00013698,2]
[333082240,1721849439932,-500.0,0.00013698,2]
[333082241,1721849439941,-500.0,0.00013698,2]
[333082242,1721849439951,-502.71235514,0.00013698,2]
[333082243,1721849439960,-545.85,0.00013698,2]
[333082244,1721849439970,-508.72670725,0.00013698,2]
[333082245,1721849439979,-1617.6,0.00013698,2]
[333082246,1721849439989,-500.0,0.00013698,2]
[333082247,1721849439998,-500.0,0.00013698,2]
[333082248,1721849440007,-500.0,0.00013698,2]
[333082249,1721849440017,-2930.93,0.00013698,2]
[333082250,1721849440026,-500.0,0.00013698,2]
[333082251,1721849440036,-500.0,0.00013698,2]
[333082252,1721849440046,-500.0,0.00013698,2]
[333082253,1721849440055,-500.0,0.00013698,2]
[333082254,1721849440065,-516.42469456,0.00013698,2]
[333082255,1721849440074,-831.54,0.00013698,2]
[333082256,1721849440083,-727.45,0.00013698,2]
[333082257,1721849440094,-500.0,0.00013698,2]
[333082258,1721849440103,-500.0,0.00013698,2]
[333082259,1721849440113,-2773.96,0.00013698,2]
[333082261,1721849440122,-500.0,0.00013698,2]
[333082262,1721849440132,-500.0,0.00013698,2]
[333082263,1721849440141,-12837.91,0.00013698,2]
[333082264,1721849440150,-500.0,0.00013698,2]
[333082265,1721849440160,-3940.69,0.00013698,2]
[333082266,1721849440169,-500.0,0.00013698,2]
[333082267,1721849440179,-6821.14,0.00013698,2]
[333082268,1721849440188,-500.0,0.00013698,2]
[333082269,1721849440198,-2855.69,0.00013698,2]
[333082270,1721849440208,-4287.99,0.00013698,2]
[333082271,1721849440217,-3192.17,0.00013698,2]
[333082272,1721849440227,-500.0,0.00013698,2]
[333082273,1721849440236,-499.99813913,0.00013698,2]
[333082274,1721849440247,-500.0,0.00013698,2]
[333082275,1721849440259,-3132.61,0.00013698,2]
[333082276,1721849440269,-4239.86,0.00013698,2]
[333082277,1721849440278,-1648.14,0.00013698,2]
[333082278,1721849440288,-10382.21,0.00013698,2]
[333082279,1721849440298,-500.0,0.00013698,2]
[333082280,1721849440307,-504.59,0.00013698,2]
[333082281,1721849440317,-835.62,0.00013698,2]
[333082282,1721849440326,-857.92,0.00013698,2]
[333082283,1721849440338,-500.0,0.00013698,2]
[333082284,1721849440350,-1990.49,0.00013698,2]
[333082285,1721849440360,-500.0,0.00013698,2]
[333082286,1721849440369,-607.76,0.00013698,2]
[333082287,1721849440379,-500.0,0.00013698,2]
[333082288,1721849440389,-500.0,0.00013698,2]
[333082289,1721849440398,-809.09,0.00013698,2]
[333082290,1721849440407,-500.0,0.00013698,2]
[333082291,1721849440416,-500.0,0.00013698,2]
[333082292,1721849440425,-1825.95,0.00013698,2]
[333082293,1721849440433,-500.0,0.00013698,2]
[333082294,1721849440443,-500.0,0.00013698,2]
[333082295,1721849440452,-500.0,0.00013698,2]
[333082296,1721849440461,-500.0,0.00013698,2]
[333082297,1721849440470,-500.0,0.00013698,2]
[333082298,1721849440480,-500.0,0.00013698,2]
[333082299,1721849440490,-500.0,0.00013698,2]
[333082300,1721849440499,-500.0,0.00013698,2]
[333082301,1721849440509,-411.3559246,0.00013698,2]
[333082302,1721849440518,-500.0,0.00013698,2]
[333082303,1721849440527,-500.0,0.00013698,2]
[333082304,1721849440536,-1214.08,0.00013698,2]
[333082305,1721849440546,-500.0,0.00013698,2]
[333082306,1721849440556,-500.0,0.00013698,2]
[333082307,1721849440566,-619.02,0.00013698,2]
[333082308,1721849440575,-500.0,0.00013698,2]
[333082309,1721849440585,-500.0,0.00013698,2]
[333082310,1721849440595,-500.0,0.00013698,2]
[333082311,1721849440605,-366.29564877,0.00013698,2]
[333082312,1721849440614,-1223.68,0.00013698,2]
[333082313,1721849440623,-1264.25,0.00013698,2]
[333082314,1721849440632,-8045.59,0.00013698,2]
[333082315,1721849440642,-500.0,0.00013698,2]
[333082316,1721849440652,-765.65,0.00013698,2]
[333082317,1721849440662,-5978.25,0.00013698,2]
[333082318,1721849440671,-500.0,0.00013698,2]
[333082319,1721849440681,-3596.4,0.00013698,2]
[333082320,1721849440690,-500.0,0.00013698,2]
[333082321,1721849440699,-471.06056895,0.00013698,2]
[333082322,1721849440709,-1940.15,0.00013698,2]
[333082323,1721849440718,-500.0,0.00013698,2]
[333082324,1721849440728,-2025.58,0.00013698,2]
[333082325,1721849440738,-151.0,0.00013698,2]
[333082326,1721849440747,-500.0,0.00013698,2]
[333082327,1721849440757,-330.38713503,0.00013698,2]
[333082328,1721849440766,-151.0,0.00013698,2]
[333082329,1721849440776,-500.0,0.00013698,2]
[333082330,1721849440786,-500.0,0.00013698,2]
[333082331,1721849440797,-500.0,0.00013698,2]
[333082332,1721849440808,-684.65,0.00013698,2]
[333082333,1721849440818,-500.0,0.00013698,2]
[333082334,1721849440829,-500.0,0.00013698,2]
[333082335,1721849440839,-155.0920539,0.00013698,2]
[333082336,1721849440852,-500.0,0.00013698,2]
[333082337,1721849440861,-500.0,0.00013698,2]
[333082338,1721849440871,-500.0,0.00013698,2]
[333082339,1721849440881,-500.0,0.00013698,2]
[333082340,1721849440891,-500.0,0.00013698,2]
[333082341,1721849440902,-500.0,0.00013698,2]
[333082342,1721849440914,-328.04339909,0.00013698,2]
[333082343,1721849440925,-500.0,0.00013698,2]
[333082344,1721849440936,-500.0,0.00013698,2]
[333082345,1721849440947,-404.85122163,0.00013698,2]
[333082346,1721849440956,-643.3553404,0.00013698,2]
[333082347,1721849440965,-500.0,0.00013698,2]
[333082348,1721849440974,-1017.398271,0.00013699,2]
[333082349,1721849440983,-3000.0,0.00013699,2]
[333082350,1721849440993,-150.112233,0.000137,2]
[333082351,1721849441003,-150.112233,0.000138,2]
[333082352,1721849441013,-150.112233,0.000138,2]
[333082353,1721849441026,-1199.58886922,0.00013863,2]
[333082354,1721849441036,-3864.34986108,0.00013873,2]
[333082355,1721849441047,-334.90305283,0.00013882,2]
[333082356,1721849441058,-210.2509131,0.000139,2]
[333082357,1721849441067,-153.0,0.000139,2]
[333082358,1721849441077,-153.0,0.000139,2]
[333082359,1721849441087,-150.112233,0.000139,2]
[333082360,1721849441098,-150.112233,0.000139,2]
[333082361,1721849441107,-5788.53,0.00013927,2]
[333082362,1721849441116,-2000.0,0.00013928,2]
[333082363,1721849441126,-2000.0,0.00013937,2]
[333082364,1721849441135,-2000.0,0.00013946,2]
[333082365,1721849441144,-2000.0,0.00013954,2]
[333082366,1721849441155,-4391.64864386,0.0001396,2]
[333082367,1721849441165,-13174.9459316,0.00013961,2]
[333082368,1721849441177,-8783.29728772,0.00013961,2]
[333082369,1721849441186,-5788.53,0.00013961,2]
[333082370,1721849441196,-151.0,0.00013962,2]
[333082371,1721849441207,-151.0,0.00013962,2]
[333082372,1721849441217,-151.0,0.00013962,2]
[333082373,1721849441229,-151.0,0.00013962,2]
[333082374,1721849441242,-151.0,0.00013962,2]
[333082375,1721849441255,-151.0,0.00013962,2]
[333082376,1721849441266,-151.0,0.00013962,2]
[333082377,1721849441275,-151.0,0.00013962,2]
[333082378,1721849441284,-21958.2432193,0.00013962,2]
[333082379,1721849441295,-2000.0,0.00013963,2]
[333082380,1721849441305,-151.0,0.0001397,2]
[333082381,1721849441317,-370.718604,0.0001397,2]
[333082382,1721849441327,-370.718604,0.0001397,2]
[333082383,1721849441339,-151.0,0.0001397,2]
[333082384,1721849441353,-183.20573,0.0001397,2]
[333082385,1721849441363,-183.20573,0.0001397,2]
[333082386,1721849441372,-5788.53,0.0001397,2]
[333082387,1721849441382,-5788.53,0.0001397,2]
[333082388,1721849441391,-5788.53,0.0001397,2]
[333082389,1721849441401,-5788.53,0.0001397,2]
[333082390,1721849441410,-151.0,0.00013971,2]
[333082391,1721849441420,-5788.53,0.00013971,2]
[333082392,1721849441429,-5788.53,0.00013971,2]
[333082393,1721849441438,-5788.53,0.00013971,2]
[333082394,1721849441447,-5788.53,0.00013971,2]
[333082395,1721849441457,-5788.53,0.00013971,2]
[333082396,1721849441467,-5788.53,0.00013971,2]
[333082397,1721849441476,-5788.53,0.00013971,2]
[333082398,1721849441486,-5788.53,0.00013971,2]
[333082399,1721849441495,-5788.6155338,0.00013971,2]
[333082400,1721849441505,-151.0,0.00013971,2]
[333082401,1721849441515,-151.0,0.00013971,2]
[333082402,1721849441524,-152.125492,0.00013971,2]
[333082403,1721849441534,-151.0,0.00013971,2]
[333082404,1721849441543,-151.0,0.00013971,2]
[333082405,1721849441552,-151.0,0.00013971,2]
[333082406,1721849441561,-151.0,0.00013971,2]
[333082407,1721849441570,-151.0,0.00013971,2]
[333082408,1721849441580,-43135.53253091,0.00013972,5]
[333082409,1721849441590,-2000.0,0.00013972,2]
[333082410,1721849441601,-1101.02,0.00013972,2]
[333082411,1721849441610,-588.69,0.00013972,2]
[333082412,1721849441619,-547.68,0.00013972,2]
[333082413,1721849441629,-500.0,0.00013972,2]
[333082414,1721849441639,-500.0,0.00013972,2]
[333082415,1721849441648,-500.0,0.00013972,2]
[333082416,1721849441657,-500.0,0.00013972,2]
[333082417,1721849441667,-500.0,0.00013972,2]
[333082418,1721849441676,-500.0,0.00013972,2]
[333082419,1721849441686,-500.0,0.00013972,2]
[333082420,1721849441696,-500.0,0.00013972,2]
[333082421,1721849441705,-500.0,0.00013972,2]
[333082422,1721849441715,-500.0,0.00013972,2]
[333082423,1721849441725,-705.07,0.00013972,2]
[333082424,1721849441734,-500.0,0.00013972,2]
[333082425,1721849441744,-1812.31,0.00013972,2]
[333082426,1721849441754,-500.0,0.00013972,2]
[333082427,1721849441763,-518.12237967,0.00013972,2]
[333082428,1721849441773,-500.0,0.00013972,2]
[333082429,1721849441782,-500.0,0.00013972,2]
[333082430,1721849441791,-500.0,0.00013972,2]
[333082431,1721849441801,-500.0,0.00013972,2]
[333082432,1721849441812,-500.0,0.00013972,2]
[333082433,1721849441821,-500.0,0.00013972,2]
[333082434,1721849441831,-500.0,0.00013972,2]
[333082435,1721849441840,-685.21,0.00013972,2]
[333082436,1721849441850,-500.0,0.00013972,2]
[333082437,1721849441859,-500.0,0.00013972,2]
[333082438,1721849441870,-652.79,0.00013972,2]
[333082439,1721849441879,-500.0,0.00013972,2]
[333082440,1721849441889,-2095.62,0.00013972,2]
[333082441,1721849441898,-500.0,0.00013972,2]
[333082442,1721849441907,-500.0,0.00013972,2]
[333082443,1721849441917,-500.0,0.00013972,2]
[333082444,1721849441927,-319.68635329,0.00013972,2]
[333082445,1721849441936,-500.0,0.00013972,2]
[333082446,1721849441945,-2251.49,0.00013972,2]
[333082447,1721849441954,-1376.31,0.00013972,2]
[333082448,1721849441965,-500.0,0.00013972,2]
[333082449,1721849441975,-500.0,0.00013972,2]
[333082450,1721849441985,-500.0,0.00013972,2]
[333082451,1721849441995,-508.97254975,0.00013972,2]
[333082452,1721849442004,-227.16455224,0.00013972,2]
[333082453,1721849442014,-623.42,0.00013972,2]
[333082454,1721849442024,-500.0,0.00013972,2]
[333082455,1721849442033,-500.0,0.00013972,2]
[333082456,1721849442043,-500.0,0.00013972,2]
[333082457,1721849442052,-334.8116071,0.00013972,2]
[333082458,1721849442062,-1579.31,0.00013972,2]
[333082459,1721849442072,-359.05493037,0.00013972,2]
[333082460,1721849442082,-2906.9,0.00013972,2]
[333082461,1721849442091,-595.66,0.00013972,2]
[333082462,1721849442102,-151.0,0.00013972,2]
[333082463,1721849442111,-1028.89,0.00013972,2]
[333082464,1721849442120,-500.0,0.00013972,2]
[333082465,1721849442130,-500.0,0.00013972,2]
[333082466,1721849442140,-500.0,0.00013972,2]
[333082467,1721849442150,-1177.43,0.00013972,2]
[333082468,1721849442159,-500.0,0.00013972,2]
[333082469,1721849442169,-500.0,0.00013972,2]
[333082470,1721849442180,-500.0,0.00013972,2]
[333082471,1721849442189,-500.0,0.00013972,2]
[333082472,1721849442199,-500.0,0.00013972,2]
[333082473,1721849442209,-1824.45,0.00013972,2]
[333082474,1721849442218,-500.0,0.00013972,2]
[333082475,1721849442228,-234.57271414,0.00013972,2]
[333082476,1721849442237,-1110.96,0.00013972,2]
[333082477,1721849442246,-457.65884256,0.00013972,2]
[333082478,1721849442259,-500.0,0.00013972,2]
[333082479,1721849442269,-500.0,0.00013972,2]
[333082480,1721849442279,-648.43,0.00013972,2]
[333082481,1721849442289,-151.0,0.00013972,2]
[333082482,1721849442301,-151.0,0.00013972,2]
[333082483,1721849442311,-370.718604,0.00013972,2]
[333082484,1721849442321,-370.718604,0.00013972,2]
[333082485,1721849442332,-370.718604,0.00013972,2]
[333082486,1721849442342,-370.718604,0.00013972,2]
[333082487,1721849442352,-695.51,0.00013972,2]
[333082488,1721849442361,-500.0,0.00013972,2]
[333082489,1721849442370,-1520.4,0.00013972,2]
[333082491,1721849442380,-500.0,0.00013972,2]
[333082492,1721849442389,-500.0,0.00013972,2]
[333082493,1721849442398,-662.28,0.00013972,2]
[333082494,1721849442408,-1656.58,0.00013972,2]
[333082495,1721849442417,-500.0,0.00013972,2]
[333082496,1721849442427,-500.0,0.00013972,2]
[333082497,1721849442438,-642.1,0.00013972,2]
[333082498,1721849442447,-521.9,0.00013972,2]
[333082499,1721849442456,-1143.06505084,0.00013972,2]
[333082500,1721849442465,-712.45,0.00013972,2]
[333082501,1721849442474,-779.58,0.00013972,2]
[333082502,1721849442483,-500.0,0.00013972,2]